fUST/lending_fUST_20251002
["ID","MTS","AMOUNT","RATE_DAILY","PERIOD"]
[388746255,1759345867596,-569.29,0.00022739,2]
[388746256,1759345867606,-714.51,0.00022739,2]
[388746257,1759345867615,-796.49,0.00022739,2]
[388746258,1759345867625,-1648.24,0.00022739,2]
[388746259,1759345867635,-1155.6,0.00022739,2]
[388746260,1759345867644,-500.0,0.00022739,2]
[388746261,1759345867654,-755.0,0.00022757,2]
[388746262,1759345867671,-2500.0,0.0002276,2]
[388746263,1759345867681,-1200.0,0.00022808,2]
[388746264,1759345867690,-560.0,0.00022817,2]
[388746265,1759345867700,-755.0,0.00022839,2]
[388746266,1759345867709,-160.0,0.00023,2]
[388746267,1759345867719,-4000.0,0.00023,4]
[388746268,1759345867729,-154.450076,0.00023007,3]
[388746269,1759345867739,-749.67,0.00023013,2]
[388746270,1759345867749,-613.57,0.00023013,2]
[388746271,1759345867759,-771.43,0.00023013,2]
[388746272,1759345867768,-500.0,0.00023013,2]
[388746273,1759345867778,-500.0,0.00023013,2]
[388746274,1759345867789,-672.22,0.00023013,2]
[388746275,1759345867799,-500.0,0.00023013,2]
[388746276,1759345867808,-286.07,0.00023013,2]
[388746277,1759345867818,-901.59,0.00023013,2]
[388746278,1759345867827,-500.0,0.00023013,2]
[388746279,1759345867837,-890.47,0.00023013,2]
[388746280,1759345867845,-1983.88,0.00023013,2]
[388746281,1759345867854,-535.15,0.00023013,2]
[388746282,1759345867864,-1023.11,0.00023013,2]
[388746283,1759345867873,-500.0,0.00023013,2]
[388746284,1759345867883,-851.24,0.00023013,2]
[388746285,1759345867892,-639.55,0.00023013,2]
[388746286,1759345867902,-900.38,0.00023013,2]
[388746287,1759345867912,-1628.15,0.00023013,2]
[388746288,1759345867921,-500.0,0.00023013,2]
[388746289,1759345867930,-500.0,0.00023013,2]
[388746290,1759345867939,-505.58,0.00023013,2]
[388746291,1759345867949,-4193.03,0.00023013,2]
[388746292,1759345867962,-500.0,0.00023013,2]
[388746293,1759345867972,-821.39,0.00023013,2]
[388746294,1759345867982,-500.0,0.00023013,2]
[388746295,1759345867991,-711.82,0.00023013,2]
[388746296,1759345868000,-1383.14,0.00023013,2]
[388746297,1759345868011,-532.13,0.00023013,2]
[388746298,1759345868020,-608.21,0.00023013,2]
[388746299,1759345868031,-792.22,0.00023013,2]
[388746300,1759345868040,-500.0,0.00023013,2]
[388746301,1759345868050,-628.21,0.00023013,2]
[388746302,1759345868060,-582.97,0.00023013,2]
[388746303,1759345868070,-500.0,0.00023013,2]
[388746304,1759345868080,-500.0,0.00023013,2]
[388746305,1759345868090,-2142.58,0.00023013,2]
[388746306,1759345868100,-1256.62,0.00023013,2]
[388746307,1759345868256,-500.0,0.00023013,2]
[388746308,1759345868267,-1512.08,0.00023013,2]
[388746309,1759345868278,-2196.15,0.00023013,2]
[388746310,1759345868287,-1290.67,0.00023013,2]
[388746311,1759345868297,-1119.5,0.00023013,2]
[388746312,1759345868306,-500.0,0.00023013,2]
[388746313,1759345868316,-500.0,0.00023013,2]
[388746314,1759345868325,-569.29,0.00023013,2]
[388746315,1759345868335,-714.51,0.00023013,2]
[388746316,1759345868345,-796.49,0.00023013,2]
[388746317,1759345868354,-1648.24,0.00023013,2]
[388746318,1759345868363,-1155.6,0.00023013,2]
[388746319,1759345868373,-500.0,0.00023013,2]
[388746320,1759345868383,-261.3624052,0.00023014,2]
[388746321,1759345868393,-154.450076,0.00023015,2]
[388746322,1759345868403,-755.0,0.0002304,2]
[388746323,1759345868413,-500.0,0.00023048,2]
[388746324,1759345868423,-300.0,0.00023048,2]
[388746325,1759345868433,-2500.0,0.0002306,2]
[388746326,1759345868443,-1435.46496311,0.00023087,2]
[388746327,1759345868453,-755.0,0.00023102,2]
[388746328,1759345868463,-755.0,0.00023109,2]
[388746329,1759345868472,-755.0,0.00023113,2]
[388746330,1759345868482,-463.021,0.00023131,2]
[388746331,1759345868491,-172.04906,0.00023187,7]
[388746332,1759345868500,-172.04906,0.00023187,7]
[388746333,1759345868510,-172.04906,0.00023187,7]
[388746334,1759345868520,-172.049068,0.00023187,7]
[388746335,1759345868529,-151.0,0.000232,8]
[388746336,1759345868539,-2500.0,0.00023221,2]
[388746337,1759345868549,-5000.0,0.00023222,2]
[388746338,1759345868559,-2000.0,0.00023259,2]
[388746339,1759345868569,-1050.24432547,0.00023259,2]
[388746340,1759345868579,-157.12631172,0.00023277,2]
[388746341,1759345868590,-151.0,0.00023287,7]
[388746342,1759345868600,-151.0,0.00023287,7]
[388746343,1759345868609,-176.85534,0.00023287,7]
[388746344,1759345868619,-749.67,0.00023287,2]
[388746345,1759345868629,-613.57,0.00023287,2]
[388746346,1759345868638,-281.18554396,0.00023287,2]
[388746347,1759345868650,-771.43,0.00023287,2]
[388746348,1759345868659,-500.0,0.00023287,2]
[388746349,1759345868669,-500.0,0.00023287,2]
[388746350,1759345868679,-672.22,0.00023287,2]
[388746351,1759345868688,-500.0,0.00023287,2]
[388746352,1759345868697,-901.59,0.00023287,2]
[388746353,1759345868709,-500.0,0.00023287,2]
[388746354,1759345868719,-890.47,0.00023287,2]
[388746355,1759345868728,-1983.88,0.00023287,2]
[388746356,1759345868737,-535.15,0.00023287,2]
[388746357,1759345868747,-1023.11,0.00023287,2]
[388746358,1759345868756,-500.0,0.00023287,2]
[388746359,1759345868766,-851.24,0.00023287,2]
[388746360,1759345868775,-639.55,0.00023287,2]
[388746361,1759345868784,-900.38,0.00023287,2]
[388746362,1759345868793,-1628.15,0.00023287,2]
[388746363,1759345868802,-500.0,0.00023287,2]
[388746364,1759345868812,-500.0,0.00023287,2]
[388746365,1759345868821,-505.58,0.00023287,2]
[388746366,1759345868832,-4193.03,0.00023287,2]
[388746367,1759345868842,-500.0,0.00023287,2]
[388746368,1759345868851,-821.39,0.00023287,2]
[388746369,1759345868860,-500.0,0.00023287,2]
[388746370,1759345868870,-711.82,0.00023287,2]
[388746371,1759345868879,-1383.14,0.00023287,2]
[388746372,1759345868889,-532.13,0.00023287,2]
[388746373,1759345868900,-608.21,0.00023287,2]
[388746374,1759345868910,-792.22,0.00023287,2]
[388746375,1759345868920,-500.0,0.00023287,2]
[388746376,1759345868930,-628.21,0.00023287,2]
[388746377,1759345868940,-582.97,0.00023287,2]
[388746378,1759345868951,-500.0,0.00023287,2]
[388746379,1759345868967,-500.0,0.00023287,2]
[388746380,1759345868977,-2142.58,0.00023287,2]
[388746381,1759345868986,-1256.62,0.00023287,2]
[388746382,1759345868995,-500.0,0.00023287,2]
[388746383,1759345869006,-1512.08,0.00023287,2]
[388746384,1759345869016,-2196.15,0.00023287,2]
[388746385,1759345869026,-1290.67,0.00023287,2]
[388746386,1759345869038,-1119.5,0.00023287,2]
[388746387,1759345869047,-500.0,0.00023287,2]
[388746388,1759345869058,-500.0,0.00023287,2]
[388746389,1759345869068,-569.29,0.00023287,2]
[388746390,1759345869078,-714.51,0.00023287,2]
[388746391,1759345869087,-796.49,0.00023287,2]
[388746392,1759345869096,-1648.24,0.00023287,2]
[388746393,1759345869105,-1155.6,0.00023287,2]
[388746394,1759345869115,-500.0,0.00023287,2]
[388746395,1759345869124,-154.450076,0.00023298,4]
[388746396,1759345869135,-1500.0,0.00023356,2]
[388746397,1759345869144,-660.0,0.00023365,2]
[388746398,1759345869158,-8402.89,0.000234,2]
[388746399,1759345869168,-755.0,0.00023403,2]
[388746400,1759345869178,-864.0,0.00023545,20]
[388746401,1759345869188,-1435.46496311,0.00023546,2]
[388746402,1759345869197,-749.67,0.00023561,2]
[388746403,1759345869208,-613.57,0.00023561,2]
[388746404,1759345869218,-771.43,0.00023561,2]
[388746405,1759345869227,-500.0,0.00023561,2]
[388746406,1759345869236,-151.0,0.00023561,7]
[388746407,1759345869246,-500.0,0.00023561,2]
[388746408,1759345869256,-672.22,0.00023561,2]
[388746409,1759345869266,-500.0,0.00023561,2]
[388746410,1759345869275,-901.59,0.00023561,2]
[388746411,1759345869285,-500.0,0.00023561,2]
[388746412,1759345869294,-890.47,0.00023561,2]
[388746413,1759345869303,-1983.88,0.00023561,2]
[388746414,1759345869312,-535.15,0.00023561,2]
[388746415,1759345869322,-1023.11,0.00023561,2]
[388746416,1759345869331,-500.0,0.00023561,2]
[388746417,1759345869340,-851.24,0.00023561,2]
[388746418,1759345869350,-639.55,0.00023561,2]
[388746419,1759345869359,-900.38,0.00023561,2]
[388746420,1759345869369,-1628.15,0.00023561,2]
[388746421,1759345869378,-500.0,0.00023561,2]
[388746422,1759345869387,-500.0,0.00023561,2]
[388746423,1759345869396,-505.58,0.00023561,2]
[388746424,1759345869406,-4193.03,0.00023561,2]
[388746425,1759345869415,-500.0,0.00023561,2]
[388746426,1759345869425,-821.39,0.00023561,2]
[388746427,1759345869436,-500.0,0.00023561,2]
[388746428,1759345869446,-711.82,0.00023561,2]
[388746429,1759345869456,-1383.14,0.00023561,2]
[388746430,1759345869465,-532.13,0.00023561,2]
[388746431,1759345869475,-608.21,0.00023561,2]
[388746432,1759345869484,-792.22,0.00023561,2]
[388746433,1759345869493,-500.0,0.00023561,2]
[388746434,1759345869503,-628.21,0.00023561,2]
[388746435,1759345869512,-582.97,0.00023561,2]
[388746436,1759345869522,-500.0,0.00023561,2]
[388746437,1759345869531,-500.0,0.00023561,2]
[388746438,1759345869540,-2142.58,0.00023561,2]
[388746439,1759345869549,-1256.62,0.00023561,2]
[388746440,1759345869558,-500.0,0.00023561,2]
[388746441,1759345869568,-1512.08,0.00023561,2]
[388746442,1759345869578,-2196.15,0.00023561,2]
[388746443,1759345869588,-1290.67,0.00023561,2]
[388746444,1759345869597,-1119.5,0.00023561,2]
[388746445,1759345869606,-500.0,0.00023561,2]
[388746446,1759345869616,-500.0,0.00023561,2]
[388746447,1759345869625,-569.29,0.00023561,2]
[388746448,1759345869635,-714.51,0.00023561,2]
[388746449,1759345869646,-796.49,0.00023561,2]
[388746450,1759345869656,-1648.24,0.00023561,2]
[388746451,1759345869666,-1155.6,0.00023561,2]
[388746452,1759345869675,-500.0,0.00023561,2]
[388746453,1759345869684,-450.0,0.00023596,2]
[388746454,1759345869694,-3000.0,0.00023769,2]
[388746455,1759345869703,-1435.46496311,0.00023796,2]
[388746456,1759345869712,-749.67,0.00023835,2]
[388746457,1759345869722,-613.57,0.00023835,2]
[388746458,1759345869731,-771.43,0.00023835,2]
[388746459,1759345869740,-500.0,0.00023835,2]
[388746460,1759345869749,-500.0,0.00023835,2]
[388746461,1759345869759,-672.22,0.00023835,2]
[388746462,1759345869768,-500.0,0.00023835,2]
[388746463,1759345869778,-901.59,0.00023835,2]
[388746464,1759345869787,-500.0,0.00023835,2]
[388746465,1759345869797,-890.47,0.00023835,2]
[388746466,1759345869806,-1983.88,0.00023835,2]
[388746467,1759345869815,-535.15,0.00023835,2]
[388746468,1759345869825,-1023.11,0.00023835,2]
[388746469,1759345869834,-500.0,0.00023835,2]
[388746470,1759345869843,-851.24,0.00023835,2]
[388746471,1759345869853,-639.55,0.00023835,2]
[388746472,1759345869862,-900.38,0.00023835,2]
[388746473,1759345869871,-1628.15,0.00023835,2]
[388746474,1759345869880,-500.0,0.00023835,2]
[388746475,1759345869890,-500.0,0.00023835,2]
[388746476,1759345869901,-505.58,0.00023835,2]
[388746477,1759345869911,-4193.03,0.00023835,2]
[388746478,1759345869920,-500.0,0.00023835,2]
[388746479,1759345870021,-821.39,0.00023835,2]
[388746480,1759345870032,-500.0,0.00023835,2]
[388746481,1759345870043,-711.82,0.00023835,2]
[388746482,1759345870054,-532.13,0.00023835,2]
[388746483,1759345870063,-1383.14,0.00023835,2]
[388746484,1759345870072,-608.21,0.00023835,2]
[388746485,1759345870080,-792.22,0.00023835,2]
[388746486,1759345870089,-500.0,0.00023835,2]
[388746487,1759345870099,-628.21,0.00023835,2]
[388746488,1759345870110,-582.97,0.00023835,2]
[388746489,1759345870119,-500.0,0.00023835,2]
[388746490,1759345870130,-500.0,0.00023835,2]
[388746491,1759345870141,-2142.58,0.00023835,2]
[388746492,1759345870151,-1256.62,0.00023835,2]
[388746493,1759345870160,-500.0,0.00023835,2]
[388746494,1759345870170,-1512.08,0.00023835,2]
[388746495,1759345870179,-2196.15,0.00023835,2]
[388746496,1759345870188,-1290.67,0.00023835,2]
[388746497,1759345870198,-1119.5,0.00023835,2]
[388746498,1759345870207,-214.29463046,0.00023835,2]
[388746499,1759345870218,-284.78605968,0.00023835,2]
[388746500,1759345870228,-569.29,0.00023835,2]
[388746501,1759345870237,-714.51,0.00023835,2]
[388746502,1759345870246,-796.49,0.00023835,2]
[388746503,1759345870256,-1648.24,0.00023835,2]
[388746504,1759345870267,-1155.6,0.00023835,2]
[388746505,1759345870277,-209.0,0.00023863,11]
[388746506,1759345870286,-1419.0256027,0.00023904,2]
[388746507,1759345870295,-760.0,0.00023913,2]
[388746508,1759345870304,-800.0,0.00023973,2]
[388746509,1759345870313,-4000.0,0.00024,4]
[388746510,1759345870322,-10588.35227838,0.00024004,2]
[388746511,1759345870332,-1435.46496311,0.00024051,2]
[388746512,1759345870341,-12500.0,0.00024109,7]
[388746513,1759345870351,-749.67,0.00024109,2]
[388746514,1759345870363,-613.57,0.00024109,2]
[388746515,1759345870372,-771.43,0.00024109,2]
[388746516,1759345870382,-373.18,0.00024109,2]
[388746517,1759345870391,-200.0,0.00024109,2]
[388746518,1759345870401,-200.0,0.00024109,2]
[388746519,1759345870410,-200.0,0.00024109,2]
[388746520,1759345870419,-200.0,0.00024109,2]
[388746521,1759345870428,-200.0,0.00024109,2]
[388746522,1759345870438,-200.0,0.00024109,2]
[388746523,1759345870447,-183.2739459,0.00024109,2]
[388746524,1759345870456,-500.0,0.00024109,2]
[388746525,1759345870465,-672.22,0.00024109,2]
[388746526,1759345870475,-500.0,0.00024109,2]
[388746527,1759345870484,-901.59,0.00024109,2]
[388746528,1759345870493,-500.0,0.00024109,2]
[388746529,1759345870502,-890.47,0.00024109,2]
[388746530,1759345870512,-1983.88,0.00024109,2]
[388746531,1759345870522,-535.15,0.00024109,2]
[388746532,1759345870532,-1023.11,0.00024109,2]
[388746533,1759345870541,-379.61,0.00024109,2]
[388746534,1759345870550,-851.24,0.00024109,2]
[388746535,1759345870559,-639.55,0.00024109,2]
[388746536,1759345870568,-900.38,0.00024109,2]
[388746537,1759345870577,-1628.15,0.00024109,2]
[388746538,1759345870586,-500.0,0.00024109,2]
[388746539,1759345870595,-209.01,0.00024109,2]
[388746540,1759345870606,-505.58,0.00024109,2]
[388746541,1759345870615,-4193.03,0.00024109,2]
[388746542,1759345870625,-500.0,0.00024109,2]
[388746543,1759345870634,-821.39,0.00024109,2]
[388746544,1759345870644,-500.0,0.00024109,2]
[388746545,1759345870654,-711.82,0.00024109,2]
[388746546,1759345870663,-532.13,0.00024109,2]
[388746547,1759345870672,-1383.14,0.00024109,2]
[388746548,1759345870681,-608.21,0.00024109,2]
[388746549,1759345870691,-792.22,0.00024109,2]
[388746550,1759345870699,-500.0,0.00024109,2]
[388746551,1759345870708,-628.21,0.00024109,2]
[388746552,1759345870717,-582.97,0.00024109,2]
[388746553,1759345870726,-500.0,0.00024109,2]
[388746554,1759345870735,-500.0,0.00024109,2]
[388746555,1759345870745,-2142.58,0.00024109,2]
[388746556,1759345870753,-1256.62,0.00024109,2]
[388746557,1759345870762,-500.0,0.00024109,2]
[388746558,1759345870772,-1512.08,0.00024109,2]
[388746559,1759345870780,-2196.15,0.00024109,2]
[388746560,1759345870789,-1290.67,0.00024109,2]
[388746561,1759345870798,-1119.5,0.00024109,2]
[388746562,1759345870808,-569.29,0.00024109,2]
[388746563,1759345870817,-714.51,0.00024109,2]
[388746564,1759345870827,-796.49,0.00024109,2]
[388746565,1759345870837,-1648.24,0.00024109,2]
[388746566,1759345870847,-1155.6,0.00024109,2]
[388746567,1759345870857,-151.0,0.0002411,2]
[388746568,1759345870866,-242.46671906,0.0002411,2]
[388746569,1759345870875,-151.0,0.0002411,2]
[388746570,1759345870884,-151.0,0.0002411,2]
[388746571,1759345870893,-151.0,0.0002411,2]
[388746572,1759345870903,-151.0,0.0002411,2]
[388746573,1759345870911,-151.0,0.0002411,2]
[388746574,1759345870920,-151.0,0.0002411,2]
[388746575,1759345870931,-151.0,0.0002411,2]
[388746576,1759345870940,-151.0,0.0002411,2]
[388746577,1759345870950,-151.0,0.0002411,2]
[388746578,1759345870963,-151.0,0.0002411,2]
[388746579,1759345870971,-151.0,0.0002411,2]
[388746580,1759345870980,-151.55455188,0.0002411,2]
[388746581,1759345870989,-151.0,0.0002411,2]
[388746582,1759345870999,-151.45944655,0.0002411,2]
[388746583,1759345871007,-151.0,0.0002411,2]
[388746584,1759345871016,-151.0,0.0002411,2]
[388746585,1759345871025,-151.0,0.0002411,2]
[388746586,1759345871038,-151.0,0.0002411,2]
[388746587,1759345871047,-151.0,0.0002411,2]
[388746588,1759345871057,-500.0,0.0002411,2]
[388746589,1759345871067,-151.0,0.0002411,2]
[388746590,1759345871076,-151.0,0.0002411,2]
[388746591,1759345871085,-151.0,0.0002411,2]
[388746592,1759345871095,-151.0,0.0002411,2]
[388746593,1759345871104,-151.0,0.0002411,2]
[388746594,1759345871113,-294.98545417,0.0002411,2]
[388746595,1759345871122,-158.67951241,0.0002411,2]
[388746596,1759345871131,-151.0,0.0002411,2]
[388746597,1759345871141,-151.0,0.0002411,2]
[388746598,1759345871152,-151.0,0.0002411,2]
[388746599,1759345871161,-151.0,0.0002411,2]
[388746600,1759345871170,-151.0,0.0002411,2]
[388746601,1759345871179,-151.0,0.0002411,2]
[388746602,1759345871189,-151.0,0.0002411,2]
[388746603,1759345871198,-600.0,0.00024144,2]
[388746604,1759345871207,-154.450076,0.00024178,7]
[388746605,1759345871216,-293.36416222,0.000242,7]
[388746606,1759345871226,-160.0,0.000242,7]
[388746607,1759345871235,-233.9640895,0.000242,7]
[388746608,1759345871244,-1435.46496311,0.00024211,2]
[388746609,1759345871253,-350.96226736,0.00024227,2]
[388746610,1759345871262,-1403.84906943,0.00024227,2]
[388746611,1759345871273,-3158.66040622,0.00024227,2]
[388746612,1759345871282,-5609.78088144,0.00024227,2]
[388746613,1759345871292,-154.450076,0.00024256,3]
[388746614,1759345871300,-1965.591174,0.0002428,5]
[388746615,1759345871310,-1000.0,0.000243,5]
[388746616,1759345871319,-652.0,0.000243,2]
[388746617,1759345871328,-800.0,0.00024309,2]
[388746618,1759345871337,-3500.0,0.00024317,2]
[388746619,1759345871346,-1000.0,0.0002432,5]
[388746620,1759345871355,-1000.0,0.0002434,5]
[388746621,1759345871364,-1000.0,0.0002436,5]
[388746622,1759345871372,-1000.0,0.0002438,5]
[388746623,1759345871382,-749.67,0.00024383,2]
[388746624,1759345871391,-613.57,0.00024383,2]
[388746625,1759345871401,-771.43,0.00024383,2]
[388746626,1759345871410,-672.22,0.00024383,2]
[388746627,1759345871420,-500.0,0.00024383,2]
[388746628,1759345871429,-901.59,0.00024383,2]
[388746629,1759345871438,-379.77,0.00024383,2]
[388746630,1759345871447,-890.47,0.00024383,2]
[388746631,1759345871457,-535.15,0.00024383,2]
[388746632,1759345871467,-1983.88,0.00024383,2]
[388746633,1759345871477,-1023.11,0.00024383,2]
[388746634,1759345871486,-851.24,0.00024383,2]
[388746635,1759345871496,-639.55,0.00024383,2]
[388746636,1759345871505,-900.38,0.00024383,2]
[388746637,1759345871515,-1628.15,0.00024383,2]
[388746638,1759345871608,-500.0,0.00024383,2]
[388746639,1759345871618,-505.58,0.00024383,2]
[388746640,1759345871628,-4193.03,0.00024383,2]
[388746641,1759345871638,-500.0,0.00024383,2]
[388746642,1759345871648,-821.39,0.00024383,2]
[388746643,1759345871658,-198.4641434,0.00024383,2]
[388746644,1759345871667,-711.82,0.00024383,2]
[388746645,1759345871676,-532.13,0.00024383,2]
[388746646,1759345871685,-1383.14,0.00024383,2]
[388746647,1759345871694,-608.21,0.00024383,2]
[388746648,1759345871703,-792.22,0.00024383,2]
[388746649,1759345871714,-500.0,0.00024383,2]
[388746650,1759345871724,-628.21,0.00024383,2]
[388746651,1759345871734,-582.97,0.00024383,2]
[388746652,1759345871744,-500.0,0.00024383,2]
[388746653,1759345871753,-500.0,0.00024383,2]
[388746654,1759345871762,-2142.58,0.00024383,2]
[388746655,1759345871771,-1256.62,0.00024383,2]
[388746656,1759345871780,-448.68286721,0.00024383,2]
[388746657,1759345871790,-1512.08,0.00024383,2]
[388746658,1759345871799,-2196.15,0.00024383,2]
[388746659,1759345871809,-1290.67,0.00024383,2]
[388746660,1759345871819,-1119.5,0.00024383,2]
[388746661,1759345871828,-569.29,0.00024383,2]
[388746662,1759345871838,-714.51,0.00024383,2]
[388746663,1759345871847,-796.49,0.00024383,2]
[388746664,1759345871856,-1648.24,0.00024383,2]
[388746665,1759345871865,-1155.6,0.00024383,2]
[388746666,1759345871875,-151.0,0.00024384,2]
[388746667,1759345871884,-151.0,0.00024384,2]
[388746668,1759345871895,-151.0,0.00024384,2]
[388746669,1759345871904,-151.0,0.00024384,2]
[388746670,1759345871914,-151.0,0.00024384,2]
[388746671,1759345871927,-151.0,0.00024384,2]
[388746672,1759345871937,-151.0,0.00024384,2]
[388746673,1759345871946,-151.0,0.00024384,2]
[388746674,1759345871961,-151.0,0.00024384,2]
[388746675,1759345871971,-151.0,0.00024384,2]
[388746676,1759345871980,-151.0,0.00024384,2]
[388746677,1759345871989,-151.0,0.00024384,2]
[388746678,1759345872002,-151.0,0.00024384,2]
[388746679,1759345872011,-151.0,0.00024384,2]
[388746680,1759345872022,-151.0,0.00024384,2]
[388746681,1759345872032,-500.0,0.00024384,2]
[388746682,1759345872041,-151.0,0.00024384,2]
[388746683,1759345872052,-151.0,0.00024384,2]
[388746684,1759345872062,-151.0,0.00024384,2]
[388746685,1759345872072,-151.0,0.00024384,2]
[388746686,1759345872082,-151.0,0.00024384,2]
[388746687,1759345872092,-151.0,0.00024384,2]
[388746688,1759345872101,-151.0,0.00024384,2]
[388746689,1759345872110,-154.450076,0.00024387,2]
[388746690,1759345872119,-1000.0,0.000244,5]
[388746691,1759345872128,-1000.0,0.0002442,5]
[388746692,1759345872137,-1000.0,0.0002444,5]
[388746693,1759345872146,-1000.0,0.0002446,5]
[388746694,1759345872156,-860.0,0.00024461,2]
[388746695,1759345872164,-1000.0,0.0002448,5]
[388746696,1759345872173,-154.450076,0.00024485,7]
[388746697,1759345872183,-140058.41877787,0.000245,27]
[388746698,1759345872334,-2739.02258977,0.000245,27]
[388746699,1759345872503,-500.0,0.00019726,2]
[388746700,1759345872512,-500.0,0.0002,2]
[388746701,1759345872522,-500.0,0.00020273,2]
[388746702,1759345872531,-500.0,0.00020273,2]
[388746703,1759345872540,-160.0,0.00020525,2]
[388746704,1759345872549,-500.0,0.00020547,2]
[388746705,1759345872560,-500.0,0.00020547,2]
[388746706,1759345872569,-500.0,0.00020821,2]
[388746707,1759345872579,-500.0,0.00020821,2]
[388746708,1759345872588,-500.0,0.00021095,2]
[388746709,1759345872597,-500.0,0.00021095,2]
[388746710,1759345872607,-500.0,0.00021369,2]
[388746711,1759345872617,-500.0,0.00021369,2]
[388746712,1759345872627,-500.0,0.00021643,2]
[388746713,1759345872636,-500.0,0.00021643,2]
[388746714,1759345872645,-500.0,0.00021917,2]
[388746715,1759345872655,-500.0,0.00023835,2]
[388746716,1759345872664,-500.0,0.00024109,2]
[388746717,1759345872674,-500.0,0.00024383,2]
[388746718,1759345872683,-12623.48704649,0.000245,27]
[388746719,1759345872849,-500.0,0.00019178,2]
[388746720,1759345872859,-500.0,0.00019178,2]
[388746721,1759345872868,-93.0,0.00019452,2]
[388746722,1759345873052,-387.0,0.00019452,2]
[388746723,1759345873062,-500.0,0.00021917,2]
[388746724,1759345873072,-500.0,0.00022191,2]
[388746725,1759345873082,-500.0,0.00022465,2]
[388746726,1759345873091,-560.32983672,0.00022739,2]
[388746727,1759345873100,-22940.54079155,0.000245,27]
[388746734,1759345933881,3473.11297129,0.00018978,2]
[388746735,1759345933903,10000.01,0.00018978,2]
[388746736,1759345933925,10000.01,0.00018978,2]
[388746737,1759345933948,10000.01,0.00018978,2]
[388746738,1759345933975,273988.48208696,0.00018978,2]
[388746739,1759345935245,-276.13221432,0.00018978,2]
[388746740,1759345937285,-194.41893908,0.00018978,2]
[388746741,1759345942963,-500.0,0.00018978,2]
[388746742,1759345953590,550.90950685,0.00018977,2]
[388746743,1759345953623,574.20351984,0.00018977,2]
[388746745,1759345958693,-200.0,0.00018978,2]
[388746746,1759345960212,-255.01229992,0.00018978,2]
[388746747,1759345962064,-249.88971549,0.00018978,2]
[388746748,1759345963592,-185.14218044,0.00018978,2]
[388746749,1759345965698,-417.37658991,0.00018978,2]
[388746750,1759345968235,-352.86848498,0.00018978,2]
[388746752,1759345972015,-459.65614521,0.00018978,2]
[388746753,1759345974488,-616.45594787,0.00018978,2]
[388746754,1759345975978,-385.64536508,0.00018978,2]
[388746755,1759345977604,-329.3851065,0.00018978,2]
[388746756,1759345982310,300.0,0.00018977,2]
[388746758,1759345988426,-199.53354559,0.00018978,2]
[388746759,1759345990564,-476.89595442,0.00018978,2]
[388746760,1759346002959,-300.0,0.00018978,2]
[388746815,1759346007547,-404.24577342,0.00018978,2]
[388746816,1759346009712,-173.828921,0.00018978,2]
[388746862,1759346014745,-213.40616008,0.00018978,2]